Workbook

Sheet Κατανομη Α΄Κυκλου Προσφυγικο
A1: Ά ΦΑΣΗ ΠΡΩΤΟΥ ΚΥΚΛΟΥ
A2: HOT SPOTS
D3: Περιφέρεια Αττικής | I3: Περιφέρεια Κεντρικής Μακεδονίας | N3: ΠΕΡΙΦΕΡΕΙΑ ΒΟΡΕΙΟΥ ΑΙΓΑΙΟΥ | R3: ΠΕΡΙΦΕΡΕΙΑ ΝΟΤΙΟΥ ΑΙΓΑΙΟΥ | T3: ΠΕΡΙΦΕΡΕΙΑ ΣΤΕΡΕΑΣ ΕΛΛΑΔΑΣ | V3: ΠΕΡΙΦΕΡΕΙΑ ΘΕΣΣΑΛΙΑΣ | W3: ΠΕΡΙΦΕΡΕΙΑ ΑΝΑΤΟΛΙΚΗΣ ΜΑΚΕΔΟΝΙΑΣ-ΘΡΑΚΗΣ | X3: ΠΕΡΙΦΕΡΕΙΑ ΗΠΕΙΡΟΥ
A4: ΕΙΔΙΚΟΤΗΤΕΣ | B4: Εκπαιδευτικό Επίπεδο | C4: ΣΥΝΟΛΟ | D4: Δήμος Περάματος | E4: Αθήνα | F4: Χαιδάρι | G4: Ωρωπός | H4: Λαύριο | I4: Δήμος Δέλτα | J4: Δήμος Κιλκίς | K4: Δήμος Παιονίας | L4: Γιαννιτσά | M4: Κατερίνη | N4: Λέσβος | O4: Σάμος | P4: Χίος | Q4: Οινούσσες | R4: Λέρος | S4: Κως | T4: Χαλκίδα | U4: Λαμία | V4: Λάρισα | W4: Δράμα | X4: Δολιανά | Y4: Ζηρός | Z4: Ιωάννινα | AA4: Κόνιτσα
A5: Διοικητικού/Διοικητικού - Οικονομικού/ Διοικητικού - Λογιστικού / Διοικητικών Γραμματέων | B5: ΠΕ/ΤΕ | C5: =SUM($D5:$AA5) -> 129 | D5: 6 | E5: 5 | F5: 4 | G5: 5 | H5: 5 | I5: =10+5 -> 15 | J5: 0 | K5: 3 | L5: 3 | M5: 2 | N5: 19 | O5: =5+6+3 -> 14 | P5: =5+5+1 -> 11 | Q5: 0 | R5: =3+1 -> 4 | S5: =3+3+4 -> 10 | T5: 5 | U5: 3 | V5: 4 | W5: 3 | X5: 2 | Y5: 2 | Z5: 3 | AA5: 1
A6: Διοικητικού/Διοικητικού - Οικονομικού/ Διοικητικού - Λογιστικού / Διοικητικών Γραμματέων | B6: ΔΕ | C6: =SUM($D6:$AA6) -> 145 | D6: 10 | E6: 8 | F6: 6 | G6: 4 | H6: 4 | I6: =16+6 -> 22 | J6: 0 | K6: 0 | L6: 5 | M6: 2 | N6: =16+3+7 -> 26 | O6: =10+6+2 -> 18 | P6: =4+1+1 -> 6 | Q6: 0 | R6: 2 | S6: =5+3+2 -> 10 | T6: 4 | U6: 2 | V6: 3 | W6: 5 | X6: 2 | Y6: 2 | Z6: 3 | AA6: 1
A7: Πολιτικών Μηχανικών | B7: ΠΕ | C7: 1 | D7: 0 | E7: 0 | F7: =($D7*100)/$D$20 -> 0 | G7: 0 | H7: 0 | I7: 0 | J7: 0 | K7: 0 | L7: 0 | M7: 0 | N7: 0 | O7: 0 | P7: 1 | Q7: 0 | R7: 0 | S7: 0 | T7: 0 | U7: 0 | V7: 0 | W7: 0 | X7: 0 | Y7: 0 | Z7: 0 | AA7: 0
A8: Τοπογράφων Μηχανικών | B8: ΠΕ | C8: 1 | D8: 0 | E8: 0 | F8: 0 | G8: 0 | H8: 0 | I8: 0 | J8: 0 | K8: 0 | L8: 0 | M8: 0 | N8: 0 | O8: 0 | P8: 1 | Q8: 0 | R8: 0 | S8: 0 | T8: 0 | U8: 0 | V8: 0 | W8: 0 | X8: 0 | Y8: 0 | Z8: 0 | AA8: 0
A9: Οικοδόμων | B9: ΔΕ | C9: 12 | D9: 0 | E9: 0 | F9: 0 | G9: 0 | H9: 0 | I9: 2 | J9: 0 | K9: 0 | L9: 0 | M9: 0 | N9: 0 | O9: 0 | P9: 10 | Q9: 0 | R9: 0 | S9: 0 | T9: 0 | U9: 0 | V9: 0 | W9: 0 | X9: 0 | Y9: 0 | Z9: 0 | AA9: 0
A10: Οδηγοί | B10: ΔΕ | C10: 76 | D10: 0 | E10: 2 | F10: 0 | G10: 3 | H10: 3 | I10: 5 | J10: 0 | K10: 2 | L10: 2 | M10: 2 | N10: =6+16 -> 22 | O10: =2+3 -> 5 | P10: =3+10 -> 13 | Q10: 0 | R10: 2 | S10: 0 | T10: 3 | U10: 1 | V10: 2 | W10: 2 | X10: 2 | Y10: 2 | Z10: 2 | AA10: 1
A11: Γενικών καθηκόντων | B11: ΔΕ | C11: 891 | D11: 53 | E11: 44 | F11: 35 | G11: 39 | H11: 39 | I11: 85 | J11: 35 | K11: 38 | L11: 27 | M11: 18 | N11: =93+40 -> 133 | O11: 52 | P11: 40 | Q11: 0 | R11: =13+6 -> 19 | S11: 14 | T11: 39 | U11: 24 | V11: 39 | W11: 28 | X11: 18 | Y11: 18 | Z11: 45 | AA11: 9
A12: Ψυχολόγοι | B12: ΠΕ | C12: 100 | D12: 11 | E12: 5 | F12: 7 | G12: 4 | H12: 4 | I12: 18 | J12: 0 | K12: 2 | L12: 3 | M12: 2 | N12: =5+1 -> 6 | O12: =5+1 -> 6 | P12: 4 | Q12: 0 | R12: 3 | S12: 5 | T12: 4 | U12: 2 | V12: 3 | W12: 3 | X12: 2 | Y12: 2 | Z12: 3 | AA12: 1
A13: Κοινωνικοί λειτουργοί | B13: ΠΕ/ΤΕ | C13: 109 | D13: 12 | E13: 5 | F13: 8 | G13: 4 | H13: 4 | I13: 20 | J13: 0 | K13: 4 | L13: 3 | M13: 2 | N13: =5+3 -> 8 | O13: =5+3 -> 8 | P13: 4 | Q13: 0 | R13: 3 | S13: 5 | T13: 4 | U13: 2 | V13: 3 | W13: 3 | X13: 2 | Y13: 2 | Z13: 2 | AA13: 1
A14: Νοσηλευτές | B14: ΤΕ/ΔΕ | C14: 138 | D14: 10 | E14: 8 | F14: 7 | G14: 4 | H14: 4 | I14: 17 | J14: 0 | K14: 3 | L14: 5 | M14: 2 | N14: =17+6 -> 23 | O14: =10+3 -> 13 | P14: 4 | Q14: 0 | R14: 12 | S14: 5 | T14: 4 | U14: 2 | V14: 3 | W14: 5 | X14: 2 | Y14: 2 | Z14: 2 | AA14: 1
A15: Δάσκαλοι / Νηπιαγωγοί / Βρεφονηπιοκόμοι | B15: ΠΕ/ΔΕ/ΤΕ | C15: 137 | D15: 12 | E15: 8 | F15: 8 | G15: 4 | H15: 4 | I15: 20 | J15: 0 | K15: 14 | L15: 4 | M15: 2 | N15: =15+4 -> 19 | O15: 9 | P15: 4 | Q15: 0 | R15: =2+2 -> 4 | S15: 5 | T15: 4 | U15: 2 | V15: 3 | W15: 4 | X15: 2 | Y15: 2 | Z15: 2 | AA15: 1
A16: Ηλεκτρολόγοι | B16: ΔΕ | C16: 80 | D16: 5 | E16: 4 | F16: 3 | G16: 3 | H16: 3 | I16: =8+3 -> 11 | J16: 0 | K16: 2 | L16: 3 | M16: 1 | N16: =4+5 -> 9 | O16: =5+3 -> 8 | P16: =3+6 -> 9 | Q16: 0 | R16: =1+2 -> 3 | S16: 2 | T16: 3 | U16: 1 | V16: 2 | W16: 3 | X16: 1 | Y16: 1 | Z16: 2 | AA16: 1
A17: Υδραυλικοί | B17: ΔΕ | C17: 65 | D17: 5 | E17: 2 | F17: 3 | G17: 2 | H17: 2 | I17: =8+2 -> 10 | J17: 0 | K17: 1 | L17: 3 | M17: 1 | N17: =4+5 -> 9 | O17: =5+5 -> 10 | P17: 2 | Q17: 0 | R17: 1 | S17: 2 | T17: 2 | U17: 1 | V17: 2 | W17: 2 | X17: 1 | Y17: 1 | Z17: 2 | AA17: 1
A18: Βοηθητικό Προσωπικό Καθαριότητας | B18: ΥΕ | C18: =SUM($D18:$AA18) -> 559 | D18: 27 | E18: 26 | F18: 17 | G18: 26 | H18: 26 | I18: =42+10 -> 52 | J18: 25 | K18: 10 | L18: 10 | M18: 5 | N18: =55+62 -> 117 | O18: =19+8 -> 27 | P18: 49 | Q18: 15 | R18: =8+20 -> 28 | S18: 8 | T18: 26 | U18: 8 | V18: 24 | W18: 10 | X18: 5 | Y18: 5 | Z18: 12 | AA18: 1
A19: Βοηθητικό Φυλακτικό Προσωπικό | B19: ΔΕ | C19: 57 | D19: 4 | E19: 3 | F19: 2 | G19: 2 | H19: 2 | I19: 6 | J19: 0 | K19: 4 | L19: 2 | M19: 1 | N19: =6+3 -> 9 | O19: 3 | P19: 2 | Q19: 0 | R19: 2 | S19: 2 | T19: 2 | U19: 2 | V19: 2 | W19: 2 | X19: 1 | Y19: 1 | Z19: 2 | AA19: 1
A20: Συνολο 1 | C20: =SUM(C5:C19) -> 2500 | D20: =SUM(D5:D19) -> 155 | E20: 120 | F20: =SUM(F5:F19) -> 100 | G20: 100 | H20: 100 | I20: 283 | J20: 60 | K20: 83 | L20: 70 | M20: 40 | N20: =SUM(N5:N19) -> 400 | O20: =O5+O6+O10+O11+O12+O13+O14+O15+O16+O17+O18+O19 -> 173 | P20: =SUM(P5:P19) -> 160 | Q20: 15 | R20: =R19+R18+R17+R16+R15+R14+R13+R12+R11+R10+R6+R5 -> 83 | S20: =SUM(S5:S19) -> 68 | T20: 100 | U20: 50 | V20: 90 | W20: 70 | X20: 40 | Y20: 40 | Z20: 80 | AA20: 20
A21: Συνολο 2 | C21: =SUM(D21:AA21) -> 2500 | D21: =D20+E20+G20+H20+F20 -> 575 | I21: =I20+J20+K20+L20+M20 -> 536 | N21: =N20+O20+P20+Q20 -> 748 | R21: =R20+S20 -> 151 | T21: =T20+U20 -> 150 | V21: 90 | W21: 70 | X21: =X20+Y20+Z20+AA20 -> 180
A25: ΣΥΝΟΛΟ ΩΦΕΛΟΥΜΕΝΩΝ ΠΡΩΤΟΥ ΚΥΚΛΟΥ | B25: 2500
A26: ΣΥΝΟΛΟ ΩΦΕΛΟΥΜΕΝΩΝ ΔΕΥΤΕΡΟΥ ΚΥΚΛΟΥ | B26: 2500
A27: ΣΥΝΟΛΟ ΔΥΟ ΚΥΚΛΩΝ | B27: =B25+B26 -> 5000

Sheet Φύλλο2
G14: Ά ΦΑΣΗ ΠΡΩΤΟΥ ΚΥΚΛΟΥ

Sheet Φύλλο3
